bitfinex/quotes_ETHUSD_20260209
["timestamp","ask_amount","ask_price","bid_price","bid_amount"]
[1770597710119,0.002,2084.1,2083.6,0.95303595]
[1770597711095,0.002,2085.2,2084.0,0.95303595]
[1770597711315,0.002,2085.2,2084.4,0.95303595]
[1770597711522,0.002,2085.2,2084.4,3.356]
[1770597712029,0.002,2085.2,2084.4,4.5553758]
[1770597712238,0.002,2085.2,2084.5,2.15235018]
[1770597712894,0.002,2084.8,2084.5,2.15235018]
[1770597713129,0.002,2085.2,2084.6,0.95303595]
[1770597713497,4.79409367,2086.1,2084.8,0.95303595]
[1770597713700,4.79409367,2086.1,2084.8,0.7]
[1770597714027,1.19840851,2086.1,2085.1,0.95303595]
[1770597715502,0.05519294,2085.9,2084.7,0.95303595]
[1770597715695,0.05519294,2085.6,2084.3,4.30703595]
[1770597715929,0.05519294,2085.6,2084.3,3.354]
[1770597716430,0.05519294,2085.3,2084.3,3.354]
[1770597717500,1.19875329,2085.5,2084.3,3.354]
[1770597717709,0.05519294,2085.3,2084.3,3.354]
[1770597718405,0.05519294,2085.3,2084.1,1.19954616]
[1770597718600,0.05519294,2085.3,2084.0,4.79846027]
[1770597718800,0.05519294,2085.0,2083.9,2.15266522]
[1770597719110,0.05519294,2085.3,2084.1,1.89952884]
[1770597719727,1.19892576,2085.2,2084.2,2.15253695]
[1770597719929,5.75038938,2085.7,2084.2,2.15253695]
[1770597719930,0.05519294,2085.8,2084.3,0.95303595]
[1770597720134,0.05519294,2085.8,2084.2,1.199501]
[1770597720135,1.2536589,2086.0,2084.5,0.95303595]
[1770597720335,1.19846596,2086.0,2084.5,0.95303595]
[1770597720513,1.2536589,2086.0,2084.7,0.95303595]
[1770597721024,1.2536589,2086.0,2084.4,2.847]
[1770597721235,1.2536589,2086.0,2084.5,0.95303595]
[1770597721832,0.05519294,2085.9,2084.8,0.95303595]
[1770597722126,0.05519294,2085.8,2084.5,3.353]
[1770597722325,1.01056914,2085.5,2084.1,1.19955696]
[1770597722525,1.01056914,2085.5,2084.2,1.19949737]
[1770597722841,0.05519294,2085.2,2084.1,2.15256348]
[1770597723064,1.01056914,2085.5,2084.1,2.15256348]
[1770597723342,0.05519294,2085.2,2084.1,2.15256348]
[1770597723906,1.19898326,2085.1,2084.3,0.7]
[1770597724828,0.05519294,2084.9,2084.3,0.7]
[1770597725032,0.05519294,2084.9,2084.3,0.001]
[1770597725635,0.05519294,2084.6,2084.0,0.001]
[1770597725838,1.01056914,2084.9,2084.0,0.001]
[1770597726042,1.19915579,2084.8,2084.0,0.001]
[1770597726532,1.19892576,2085.2,2084.0,0.95403595]
[1770597727523,0.05519294,2085.0,2084.0,0.001]
[1770597727756,0.05519294,2084.7,2084.0,0.001]
[1770597728073,1.19909827,2084.9,2084.0,0.001]
[1770597728242,0.05519294,2084.6,2084.0,0.001]
[1770597728958,0.05519294,2084.3,2084.0,0.001]
[1770597729457,0.05519294,2084.6,2084.0,0.001]
[1770597730041,1.19932837,2084.5,2084.0,0.001]
[1770597732737,0.05519294,2084.3,2084.0,0.001]
[1770597733137,0.05519294,2084.3,2083.3,1.2000192]
[1770597733534,0.05519294,2084.3,2083.2,2.1540711]
[1770597733738,0.1024,2084.4,2083.2,2.1540711]
[1770597733739,0.05519294,2084.2,2083.2,0.001]
[1770597734038,0.05519294,2083.9,2083.2,0.001]
[1770597734267,1.19973126,2083.8,2083.2,0.001]
[1770597736955,4.79888562,2084.0,2083.2,0.001]
[1770597737156,0.05519294,2083.9,2083.2,0.001]
[1770597738248,0.05519294,2083.9,2083.4,0.001]
[1770597738991,0.05519294,2083.6,2083.2,0.001]
[1770597739274,0.05519294,2083.6,2082.5,1.20047802]
[1770597739577,0.05519294,2083.6,2082.6,1.20042085]
[1770597739944,0.05519294,2083.6,2082.5,2.17694177]
[1770597740146,1.19961612,2084.0,2082.9,0.9765042]
[1770597740446,1.19961612,2084.0,2083.1,0.9765042]
[1770597740447,1.25480906,2084.0,2083.1,0.9765042]
[1770597741044,0.05519294,2083.7,2082.8,0.9765042]
[1770597741239,0.1024,2083.9,2082.8,0.9765042]
[1770597741444,1.25480906,2084.0,2082.8,0.9765042]
[1770597741742,0.05519294,2083.7,2082.8,0.9765042]
[1770597741960,1.25480906,2084.0,2082.8,0.9765042]
[1770597741961,0.05519294,2083.6,2082.8,0.9765042]
[1770597742187,0.05519294,2083.6,2082.5,0.9765042]
[1770597742685,0.05519294,2083.0,2082.3,0.001]
[1770597742986,0.15759294,2083.0,2082.3,0.001]
[1770597743189,0.05519294,2082.4,2081.5,1.20105102]
[1770597743360,0.05519294,2082.4,2081.5,1.20105094]
[1770597743684,0.05519294,2082.7,2081.6,1.20097843]
[1770597743864,0.05519294,2082.7,2081.6,1.20099687]
[1770597744788,0.05519294,2082.7,2081.5,2.17753287]
[1770597744975,0.05519294,2082.7,2081.6,1.20099027]
[1770597745286,1.20042254,2082.6,2081.5,2.17751735]
[1770597745460,0.05519294,2082.4,2081.5,2.17751735]
[1770597745662,0.05519294,2082.4,2081.2,3.353]
[1770597745663,0.05519294,2082.4,2081.2,1.20119975]
[1770597745986,0.05519294,2082.1,2081.2,1.20119975]
[1770597746191,0.05519294,2082.1,2081.0,1.20133159]
[1770597746485,0.05519294,2082.1,2080.8,4.3295042]
[1770597746686,0.05519294,2081.8,2080.9,1.20139926]
[1770597746871,0.05519294,2081.8,2080.8,4.3295042]
[1770597747188,1.20094153,2081.7,2081.0,0.7]
[1770597747690,11.64191453,2081.6,2080.3,1.2026985]
[1770597747989,0.05519294,2081.2,2080.3,0.001]
[1770597748189,0.05519294,2080.9,2080.3,1.20273211]
[1770597748391,8.21295909,2081.8,2080.6,3.6073922]
[1770597748696,8.21295909,2081.8,2080.7,0.9765042]
[1770597749359,1.20111463,2081.4,2080.7,0.9765042]
[1770597749558,1.25630757,2081.4,2080.5,1.20159256]
[1770597749792,1.25630757,2081.4,2080.3,2.17921255]
[1770597749960,1.25630757,2081.4,2080.5,1.20160081]
[1770597750674,1.25630757,2081.4,2080.3,0.9775042]
[1770597750873,1.20111463,2081.4,2080.6,1.20156866]
[1770597751563,1.20111463,2081.4,2080.5,0.9765042]
[1770597751893,1.20111463,2081.4,2080.9,0.001]
[1770597753787,0.05519294,2081.2,2080.9,0.001]
[1770597754090,0.05519294,2081.1,2080.3,0.001]
[1770597754295,3.41019294,2081.1,2080.3,0.001]
[1770597754591,0.05519294,2080.8,2080.3,0.001]
[1770597755087,3.41019294,2081.1,2080.3,0.001]
[1770597755691,1.2013455,2081.0,2080.3,0.001]
[1770597756075,0.05519294,2080.8,2080.3,0.001]
[1770597756465,1.2013455,2081.0,2080.3,0.001]
[1770597756670,0.05519294,2081.5,2080.3,0.001]
[1770597756671,4.80381613,2081.7,2080.4,0.9765042]
[1770597756880,0.05519294,2081.5,2080.4,0.9765042]
[1770597757468,0.05519294,2081.4,2080.4,0.9765042]
[1770597757865,1.20105693,2081.5,2080.5,0.9765042]
[1770597758400,1.25624987,2081.5,2080.5,0.9765042]
[1770597758765,1.25624987,2081.5,2080.3,1.20270876]
[1770597759075,0.05519294,2081.9,2080.5,0.9765042]
[1770597759275,3.51459294,2081.9,2080.5,0.9765042]
[1770597759692,0.05519294,2081.6,2080.5,0.9765042]
[1770597759898,0.05519294,2081.6,2080.5,2.17811341]
[1770597759899,1.20105693,2081.5,2080.5,2.17811341]
[1770597760793,1.20105693,2081.5,2080.6,0.9765042]
[1770597761169,1.20094153,2081.7,2080.6,0.9765042]
[1770597761997,1.20094153,2081.7,2080.7,1.20151871]
[1770597762204,1.20094153,2081.7,2080.8,0.9765042]
[1770597763688,0.98561468,2082.4,2080.8,0.9765042]
[1770597763891,1.20076849,2082.0,2081.0,0.9765042]
[1770597764096,4.61278573,2082.4,2081.1,0.9765042]
[1770597764795,0.05519294,2082.1,2081.1,0.9765042]
[1770597765314,0.002,2081.3,2081.1,0.9765042]
[1770597765489,4.61278573,2082.4,2081.1,0.9765042]
[1770597765680,10.04547363,2082.1,2080.8,2.18523718]
[1770597765878,0.002,2081.5,2080.8,2.18523718]
[1770597766075,0.002,2081.5,2080.8,0.9838209]
[1770597766282,0.002,2081.5,2080.6,0.001]
[1770597766476,0.002,2081.5,2080.7,1.20147772]
[1770597766690,0.002,2081.5,2080.7,1.20148616]
[1770597766988,0.002,2081.5,2080.8,1.20145982]
[1770597767188,0.002,2081.5,2080.6,0.9848209]
[1770597767386,0.002,2081.5,2080.7,1.20149189]
[1770597767593,0.002,2081.5,2080.6,0.001]
[1770597767594,0.05519294,2081.4,2080.6,0.001]
[1770597767906,1.20117234,2081.3,2080.6,0.001]
[1770597768815,0.05519294,2081.1,2080.6,0.001]
[1770597769003,0.05519294,2081.1,2080.4,0.001]
[1770597769782,0.32187468,2081.0,2080.4,0.001]
[1770597770202,0.05519294,2080.8,2080.4,0.001]
[1770597770408,0.29249998,2080.8,2080.4,0.001]
[1770597770620,0.34769292,2080.8,2080.4,0.001]
[1770597773016,0.29249998,2080.8,2080.4,0.001]
[1770597774122,1.48160517,2081.3,2080.4,0.9848209]
[1770597775118,1.48160517,2081.3,2080.5,2.18545512]
[1770597775488,1.53679811,2081.3,2080.5,0.9838209]
[1770597775997,1.48160517,2081.3,2080.5,0.9838209]
[1770597777516,1.48160517,2081.3,2080.5,2.18545041]
[1770597777700,0.05519294,2081.2,2080.5,0.9838209]
[1770597778221,0.05519294,2081.2,2080.6,0.001]
[1770597778416,0.002,2081.1,2080.6,0.001]
[1770597778625,0.05519294,2080.9,2080.6,0.001]
[1770597778791,3.36,2081.1,2080.6,0.001]
[1770597779510,1.2013455,2081.0,2080.6,0.001]
[1770597781128,0.002,2081.1,2080.6,0.9848209]
[1770597781334,0.2824,2081.3,2080.6,0.001]
[1770597781499,0.002,2081.5,2081.0,0.9838209]
[1770597782131,0.045928,2081.5,2080.7,0.9838209]
[1770597782433,1.20082616,2081.9,2080.9,0.9838209]
[1770597782632,1.24675416,2081.9,2080.9,0.9838209]
[1770597782930,0.045928,2081.8,2080.9,0.9838209]
[1770597783417,0.045928,2081.8,2081.1,0.9838209]
[1770597783619,0.32191008,2082.0,2081.1,0.9838209]
[1770597783822,0.045928,2081.9,2081.3,0.9838209]
[1770597784630,4.55843825,2082.6,2081.6,0.9838209]
[1770597784803,0.045928,2082.5,2081.6,0.9838209]
[1770597785231,0.045928,2082.5,2081.8,0.9838209]
[1770597785436,1.20035883,2082.8,2081.9,1.20082616]
[1770597785736,0.045928,2082.8,2082.1,0.9838209]
[1770597786127,0.045928,2082.8,2082.3,0.9838209]
[1770597786419,1.20002436,2083.3,2082.0,3.357]
[1770597786420,0.045928,2082.7,2082.0,3.357]
[1770597786605,0.10112094,2083.2,2082.0,3.357]
[1770597786804,0.045928,2083.1,2082.4,0.9838209]
[1770597787016,0.045928,2083.3,2082.4,0.9838209]
[1770597787311,0.045928,2083.3,2082.0,4.057]
[1770597787312,0.045928,2083.3,2082.2,0.9838209]
[1770597787626,0.045928,2083.2,2082.2,0.9838209]
[1770597787810,0.045928,2083.3,2082.2,1.20062684]
[1770597788009,0.05519294,2083.2,2082.0,1.2007255]
[1770597788220,0.045928,2083.2,2082.3,0.9838209]
[1770597788419,0.045928,2083.1,2082.3,0.9838209]
[1770597788619,0.045928,2083.3,2082.3,0.9838209]
[1770597789001,0.045928,2083.2,2082.3,0.9838209]
[1770597789204,0.045928,2083.3,2082.3,0.9838209]
[1770597789811,0.045928,2083.2,2082.4,2.18435874]
[1770597790221,0.045928,2083.1,2082.4,2.18435874]
[1770597790445,1.24597149,2083.3,2082.4,2.18435874]
[1770597790648,1.24597149,2083.3,2082.3,8.15815136]
[1770597790649,1.30116443,2083.3,2082.3,3.356]
[1770597790825,0.045928,2083.2,2082.3,4.55658999]
[1770597791018,0.002,2083.0,2082.3,4.55658999]
[1770597792145,0.045928,2082.9,2082.3,4.55658999]
[1770597792338,0.045928,2082.9,2082.2,0.001]
[1770597792527,0.045928,2082.8,2082.2,0.001]
[1770597792836,0.045928,2082.9,2082.2,0.001]
[1770597793043,0.045928,2082.9,2082.2,1.20164113]
[1770597793213,0.045928,2082.8,2082.2,1.20164113]
[1770597793413,0.045928,2082.9,2082.2,1.20164113]
[1770597793823,0.045928,2082.8,2082.2,0.001]
[1770597794020,1.20031609,2082.8,2082.2,0.001]
[1770597794220,0.045928,2082.7,2082.2,0.001]
[1770597794714,0.045928,2082.6,2082.2,0.001]
[1770597796252,1.24635056,2082.6,2082.2,0.001]
[1770597797245,1.24636104,2082.6,2082.2,0.001]
[1770597797542,1.20043304,2082.6,2082.2,0.001]
[1770597798086,1.20043304,2082.6,2082.0,0.001]
[1770597798234,1.20053784,2082.4,2082.0,0.001]
[1770597799845,0.045928,2082.3,2081.5,1.20105687]
[1770597800847,1.20065315,2082.2,2081.3,2.071514]
[1770597801046,1.20065315,2082.2,2081.3,2.12827277]
[1770597801854,0.045928,2082.1,2081.5,0.7]
[1770597802148,0.045928,2082.1,2081.4,0.92710043]
[1770597802445,4.55546452,2082.6,2081.6,0.92710043]
[1770597802634,0.002,2083.0,2082.0,0.92710043]
[1770597802821,1.20219985,2083.0,2082.0,0.92710043]
[1770597803023,1.20219985,2083.0,2082.1,1.20071082]
[1770597804447,0.045928,2082.9,2082.1,2.12781125]
[1770597804650,0.002,2083.0,2082.1,2.12781125]
[1770597804846,0.045928,2082.9,2082.1,2.12781125]
[1770597805471,0.045928,2082.8,2082.1,2.12781125]
[1770597806553,0.045928,2082.8,2082.2,0.92710043]
[1770597806751,0.045928,2082.8,2082.3,0.7]
[1770597807051,1.24627743,2082.8,2082.3,0.7]
[1770597807446,1.24627743,2082.8,2081.9,4.80315538]
[1770597807758,1.24627743,2082.8,2082.0,1.20073914]
[1770597807930,1.24627743,2082.8,2081.9,1.20078122]
[1770597808254,1.24627743,2082.8,2081.9,1.20079903]
[1770597808760,0.94731739,2082.3,2081.5,0.001]
[1770597809053,1.25584609,2082.2,2081.5,0.001]
[1770597809467,0.045928,2082.1,2081.5,0.001]
[1770597809759,0.99324539,2082.1,2081.5,0.001]
[1770597810054,0.045928,2082.1,2081.5,0.001]
[1770597811747,1.20076849,2082.0,2081.5,0.001]
[1770597812152,0.045928,2081.9,2081.5,0.001]
[1770597812338,1.00251033,2081.8,2080.6,0.001]
[1770597812544,1.00251033,2081.8,2080.4,0.001]
[1770597812545,0.05519294,2081.0,2080.4,0.001]
[1770597812746,0.05519294,2081.0,2079.3,2.12942813]
[1770597812747,0.05519294,2080.7,2079.3,2.12942813]
[1770597813063,0.045928,2080.9,2079.6,2.10703]
[1770597813231,0.045928,2080.7,2079.8,0.92710043]
[1770597813430,0.045928,2080.9,2079.9,0.92710043]
[1770597813846,1.20146097,2080.8,2080.0,1.20192307]
[1770597814354,0.045928,2080.7,2080.0,1.20192307]
[1770597814531,0.045928,2080.9,2080.2,0.92710043]
[1770597815956,0.045928,2080.9,2080.3,1.20174974]
[1770597816331,0.045928,2080.9,2080.4,0.92710043]
[1770597816529,1.20099923,2081.6,2080.4,0.92710043]
[1770597818055,2.14831662,2081.6,2080.3,1.20174974]
[1770597818258,1.00251033,2081.3,2080.1,1.20185639]
[1770597818562,1.00251033,2081.3,2080.1,1.20182093]
[1770597818766,1.00251033,2081.3,2080.2,1.2017959]
[1770597818947,1.00251033,2081.3,2080.1,1.20182274]
[1770597819141,1.00251033,2081.3,2080.2,1.2018056]
[1770597819553,1.00251033,2081.3,2080.2,1.90179082]
[1770597819960,1.20123005,2081.2,2080.2,0.7]
[1770597820463,1.20123005,2081.2,2080.1,1.20185906]
[1770597820968,1.20123005,2081.2,2080.2,1.20178629]
[1770597821347,1.20123005,2081.2,2080.3,0.92710043]
[1770597821540,1.20120448,2081.3,2080.3,0.92710043]
[1770597821958,1.20105693,2081.5,2080.4,1.20169198]
[1770597822262,1.20105693,2081.5,2080.4,2.12879241]
[1770597824041,1.20117234,2081.3,2080.2,4.80719611]
[1770597824241,1.20117234,2081.3,2080.2,1.20180751]
[1770597824438,1.20099923,2081.6,2080.4,0.92710043]
[1770597824968,0.05519294,2081.5,2080.4,0.92710043]
[1770597826471,1.20099923,2081.6,2080.5,1.20163422]
[1770597827054,1.20099923,2081.6,2080.5,2.11712646]
[1770597827977,1.20088385,2081.8,2080.7,0.91549224]
[1770597828475,1.20088385,2081.8,2080.8,1.20146097]
[1770597829481,1.20088385,2081.8,2080.9,0.91549224]
[1770597829645,0.002,2081.9,2081.1,0.91549224]
[1770597830270,0.002,2081.6,2081.1,0.91549224]
[1770597830475,0.002,2081.6,2081.3,0.91549224]
[1770597830686,0.002,2081.9,2081.4,8.360132]
[1770597830857,0.002,2081.9,2081.5,0.91549224]
[1770597831581,0.002,2082.1,2081.7,0.91549224]
[1770597831874,0.002,2082.1,2081.9,0.91549224]
[1770597832248,0.002,2082.7,2082.0,0.91549224]
[1770597832450,0.002,2082.6,2082.2,0.91549224]
[1770597832647,0.002,2082.6,2082.1,1.20070838]
[1770597832872,0.002,2082.6,2082.2,1.20064836]
[1770597833086,0.002,2082.6,2082.1,1.200677]
[1770597833386,0.002,2082.6,2082.2,2.11613414]
[1770597833854,0.002,2082.7,2082.3,0.91549224]
[1770597834554,0.002,2082.7,2082.4,1.20053784]
[1770597834761,0.002,2082.7,2082.4,2.11603008]
[1770597835593,0.002,2082.7,2082.0,0.91549224]
[1770597835748,0.002,2082.7,2082.0,5.71855957]
[1770597836072,0.002,2082.7,2082.1,1.20066685]
[1770597836268,0.002,2082.6,2082.0,1.20072966]
[1770597836467,0.002,2082.6,2081.8,1.20088385]
[1770597837996,0.002,2082.6,2081.4,0.91549224]
[1770597838286,0.96228856,2082.5,2081.5,1.20104935]
[1770597838586,0.002,2082.5,2081.5,0.91549224]
[1770597839798,0.002,2082.5,2081.6,3.079014]
[1770597840401,0.002,2082.5,2081.5,0.91549224]
[1770597840581,0.002,2082.5,2081.6,1.20099923]
[1770597840783,0.002,2082.5,2081.7,2.599554]
[1770597840987,0.002,2082.5,2081.6,2.11649147]
[1770597841496,0.002,2082.5,2081.7,7.542326]
[1770597841864,0.002,2082.7,2081.7,7.542326]
[1770597842080,0.002,2082.6,2082.0,0.91549224]
[1770597842571,0.002,2082.6,2082.1,2.11620306]
[1770597842787,0.002,2082.6,2082.0,1.2007474]
[1770597843090,0.002,2082.6,2082.0,1.20076482]
[1770597843384,0.002,2082.3,2082.0,1.20076482]
[1770597844390,0.002,2082.3,2082.0,2.11625706]
[1770597844784,0.004,2082.3,2082.0,2.11625706]
[1770597844978,0.004,2082.3,2082.0,1.20076482]
[1770597845183,0.002,2082.3,2082.0,2.11625706]
[1770597845965,0.002,2082.7,2082.0,2.11625706]
[1770597846177,0.002,2082.6,2082.0,2.11625706]
[1770597846373,0.002,2082.6,2081.7,0.91649224]
[1770597846580,0.002,2082.7,2081.9,1.20078021]
[1770597846785,0.002,2082.6,2081.8,4.80338793]
[1770597846966,0.002,2082.6,2081.9,0.7]
[1770597847586,0.002,2082.6,2081.7,2.11739158]
[1770597848206,0.002,2082.6,2081.7,1.20193161]
[1770597848389,0.002,2082.6,2081.7,0.001]
[1770597851703,0.002,2082.6,2081.7,0.91649224]
[1770597851872,0.002,2082.6,2081.9,0.7]
[1770597853389,0.002,2082.6,2082.0,1.20076849]
[1770597853792,0.002,2082.6,2081.9,1.20081173]
[1770597853969,0.90709562,2082.6,2081.7,0.001]
[1770597854297,0.96228856,2082.6,2081.7,1.20194119]
[1770597854710,0.96228856,2082.6,2081.7,0.001]
[1770597854711,0.90509562,2082.4,2081.7,0.001]
[1770597855902,1.20059549,2082.3,2081.7,0.001]
[1770597856400,1.20059549,2082.3,2081.9,0.001]
[1770597858705,1.20059549,2082.3,2081.7,0.001]
[1770597859008,0.001,2082.2,2081.7,0.001]
[1770597859688,0.002,2082.4,2081.7,0.001]
[1770597860007,0.001,2082.3,2081.7,0.001]
[1770597860794,0.001,2082.2,2081.7,0.001]
[1770597861404,0.001,2082.1,2081.7,0.001]
[1770597861588,0.001,2082.3,2081.7,0.001]
[1770597861790,0.001,2082.2,2081.7,0.001]
[1770597864405,1.20059549,2082.3,2081.7,0.001]
[1770597864406,0.001,2082.1,2081.7,0.001]
[1770597864608,0.001,2082.2,2081.7,0.001]
[1770597865405,2.19912145,2082.3,2081.7,0.001]
[1770597865607,0.001,2082.2,2081.7,0.001]
[1770597866693,0.001,2082.1,2081.7,0.001]
[1770597867293,1.0547189,2082.0,2080.8,2.16983133]
[1770597867607,1.0537189,2081.9,2080.8,2.16983133]
[1770597867911,3.357,2081.8,2080.8,0.96839866]
[1770597868115,0.001,2082.0,2081.3,2.16956036]
[1770597868894,0.001,2082.0,2081.3,2.16956192]
[1770597869290,1.20176849,2082.0,2081.3,2.16956192]
[1770597869485,0.001,2082.0,2081.3,2.16956192]
[1770597870214,0.001,2082.0,2081.3,1.20116326]
[1770597870417,0.003,2082.0,2081.3,1.20116326]
[1770597870606,0.003,2082.0,2081.6,0.001]
[1770597871882,0.001,2081.9,2081.6,0.001]
[1770597873290,0.001,2081.9,2081.1,1.20127947]
[1770597873495,0.001,2081.9,2081.0,1.2013455]
[1770597873812,0.001,2081.9,2080.9,2.16976662]
[1770597873813,0.99952596,2081.9,2080.9,2.16976662]
[1770597874707,0.99952596,2081.9,2081.0,0.96839866]
[1770597874708,0.001,2081.9,2081.0,0.96839866]
[1770597876189,0.001,2081.9,2081.2,0.96839866]
[1770597876586,0.002,2082.0,2081.2,0.96839866]
[1770597876789,0.001,2081.9,2081.2,0.96839866]
[1770597877410,0.002,2082.2,2081.6,0.96839866]
[1770597877591,0.003,2082.2,2081.6,0.96839866]
[1770597877994,0.002,2082.2,2081.8,0.96839866]
[1770597878315,0.002,2082.2,2082.1,2.16910948]
[1770597879121,0.002,2082.7,2082.2,0.96839866]
[1770597879293,0.002,2082.7,2082.4,0.96839866]
[1770597879895,0.003,2082.7,2082.1,2.16910948]
[1770597880089,0.002,2082.7,2082.3,0.96839866]
[1770597880296,0.002,2082.7,2082.4,2.1689365]
[1770597880496,0.001,2082.6,2082.1,1.20069754]
[1770597880688,0.001,2082.6,2082.1,1.20069012]
[1770597881091,0.001,2082.6,2082.2,1.20065305]
[1770597881294,0.001,2082.6,2082.3,1.20058015]
[1770597881696,0.001,2082.6,2082.3,2.16897881]
[1770597883820,0.002,2082.4,2082.3,2.16897881]
[1770597885327,0.002,2082.4,2082.1,1.20071036]
[1770597885501,0.002,2082.4,2082.1,1.20068161]
[1770597886234,0.002,2082.4,2082.0,4.3053516]
[1770597886533,0.002,2082.4,2082.1,1.20070253]
[1770597887030,0.002,2082.4,2082.2,0.9493516]
[1770597887533,0.002,2082.6,2082.2,0.9493516]
[1770597888634,0.002,2082.6,2082.4,0.9493516]
[1770597889521,0.002,2082.6,2082.3,1.20059549]
[1770597891931,0.002,2082.6,2081.7,4.3043516]
[1770597892137,0.002,2082.6,2082.0,1.200765]
[1770597893315,0.002,2082.6,2081.9,1.20077667]
[1770597893512,0.002,2082.6,2081.7,4.3043516]
[1770597893718,0.002,2082.6,2081.8,1.20088385]
[1770597894115,0.002,2082.6,2081.9,0.9493516]
[1770597894508,0.002,2082.6,2082.1,0.9493516]
[1770597895809,0.002,2082.6,2082.2,1.20065315]
[1770597896015,0.002,2082.6,2082.2,4.55565315]
[1770597897012,0.002,2082.4,2082.2,4.55565315]
[1770597897347,0.002,2082.6,2082.3,0.9493516]
[1770597898540,0.002,2082.6,2082.2,4.55565315]
[1770597898541,0.002,2082.6,2082.2,3.355]
[1770597898719,0.002,2082.6,2082.2,4.55562236]
[1770597899422,0.002,2082.6,2082.3,1.20056739]
[1770597900347,0.002,2082.6,2081.9,0.001]
[1770597900515,2.16691551,2082.6,2081.9,0.001]
[1770597900720,0.002,2082.6,2081.9,0.001]
[1770597901744,0.002,2082.7,2082.2,0.9493516]
[1770597901913,0.002,2083.0,2082.5,6.526518]
[1770597902113,0.002,2083.0,2082.6,4.3043516]
[1770597902754,0.33232682,2083.2,2082.9,10.939982]
[1770597902925,0.002,2083.5,2082.9,0.9493516]
[1770597904750,0.002,2083.5,2083.2,0.9493516]
[1770597904939,0.002,2083.5,2083.2,4.3033516]
[1770597906142,0.002,2083.5,2083.2,3.354]
[1770597906718,0.002,2083.5,2083.3,1.2000192]
[1770597906922,0.002,2083.5,2083.2,4.55403256]
[1770597907128,0.002,2083.5,2082.5,0.9493516]
[1770597907329,0.96444857,2083.4,2082.4,1.20053701]
[1770597907575,0.96444857,2083.4,2082.3,3.354]
[1770597907781,1.01964151,2083.3,2081.9,0.001]
[1770597908068,0.96444857,2083.0,2081.9,1.20179242]
[1770597909041,1.20024965,2082.9,2081.9,1.20179242]
[1770597910057,0.96444857,2082.6,2081.8,1.20087779]
[1770597910247,1.25544259,2082.9,2081.8,1.20087779]
[1770597910248,1.20024965,2082.9,2081.8,1.20087779]
[1770597911353,1.01964151,2082.7,2081.6,0.001]
[1770597911862,0.96444857,2082.3,2081.6,0.001]
[1770597912163,0.05519294,2082.2,2081.6,0.001]
[1770597912329,0.96444857,2082.3,2081.6,0.001]
[1770597913255,2.22029466,2082.2,2081.6,0.001]
[1770597913444,0.96444857,2082.1,2081.6,0.001]
[1770597913753,1.01964151,2082.1,2081.6,0.001]
[1770597913956,1.01964151,2082.0,2081.6,0.001]
[1770597914133,1.01964151,2082.0,2081.4,0.001]
[1770597914758,0.96444857,2082.0,2081.4,0.001]
[1770597915560,1.20082616,2081.9,2081.4,0.001]
[1770597916963,0.05519294,2081.8,2081.4,0.001]
[1770597917258,1.04201441,2081.8,2081.1,0.001]
[1770597917642,1.20094153,2081.7,2081.1,0.001]
[1770597918353,5.54241696,2082.3,2081.1,0.001]
[1770597918556,1.04201441,2082.1,2081.1,0.001]
[1770597918944,0.98682147,2081.7,2080.8,0.001]
[1770597919541,0.05519294,2081.5,2080.8,0.001]
[1770597919768,1.20111463,2081.4,2080.8,0.001]
[1770597920694,1.20111463,2081.4,2080.6,0.001]
[1770597920695,1.04201441,2081.2,2080.6,0.001]
[1770597920969,1.04201441,2081.2,2080.3,0.001]
[1770597921557,11.79988961,2081.2,2080.3,0.001]
[1770597921758,1.20128778,2081.1,2080.3,0.001]
[1770597921973,0.05519294,2080.9,2080.3,0.001]
[1770597922262,1.04201441,2080.9,2080.3,0.001]
[1770597922456,1.20128778,2081.1,2080.3,0.001]
[1770597923934,2.24318675,2081.3,2080.3,0.001]
[1770597924395,0.05519294,2080.7,2079.4,0.98010357]
[1770597924541,0.05519294,2080.7,2079.6,1.20214708]
[1770597924876,1.04201441,2080.7,2079.6,1.20214708]
[1770597925040,0.05519294,2080.4,2079.4,1.20224699]
[1770597925234,1.04201441,2080.0,2078.8,0.24954786]
[1770597925439,3.356,2079.9,2079.0,1.20248833]
[1770597925742,3.356,2079.9,2078.3,4.81161315]
[1770597925743,0.05519294,2079.7,2078.2,4.8118112]
[1770597925957,1.2023277,2079.3,2078.2,4.8118112]
[1770597926157,1.20230603,2079.4,2078.3,2.0706]
[1770597926443,1.20230603,2079.4,2078.2,4.8118112]
[1770597926762,1.20230603,2079.4,2078.2,5.79191477]
[1770597926963,1.20230603,2079.4,2078.3,7.662456]
[1770597927268,1.20230603,2079.4,2078.3,6.016834]
[1770597927437,1.20230603,2079.4,2078.3,4.528834]
[1770597927645,1.20230603,2079.4,2078.2,5.79191477]
[1770597927965,1.25749897,2079.4,2078.4,1.20284834]
[1770597928165,0.05519294,2079.3,2078.4,1.20284834]
[1770597928878,0.05519294,2079.3,2078.3,1.20287104]
[1770597929087,3.41219294,2079.3,2078.3,1.20287104]
[1770597929567,3.41219294,2079.3,2078.3,1.20290442]
[1770597929971,0.1024,2079.6,2078.3,1.20289523]
[1770597930179,0.05519294,2079.2,2078.2,1.20295858]
[1770597930349,0.05519294,2079.2,2077.8,5.06697024]
[1770597930350,0.05519294,2079.2,2078.1,1.20298545]
[1770597930545,0.05519294,2079.2,2077.9,1.20310752]
[1770597930546,0.05519294,2078.9,2077.9,1.20310752]
[1770597930787,0.05519294,2078.9,2078.0,1.20306856]
[1770597931147,0.05519294,2078.5,2077.6,1.20327414]
[1770597931371,0.05519294,2078.4,2077.4,0.003]
[1770597931575,0.1024,2078.5,2077.6,1.20326966]
[1770597931789,0.1024,2078.5,2077.5,4.81332649]
[1770597931790,0.05519294,2078.4,2077.5,1.20333562]
[1770597931950,1.25804128,2078.4,2077.4,0.003]
[1770597932153,1.25804128,2078.4,2077.6,1.20329679]